bitfinex/quotes_BTCUSD_20250618
["timestamp","ask_amount","ask_price","bid_price","bid_amount"]
[1750262496023,0.00047062,104960.0,104950.0,0.57248832]
[1750262496630,0.00047062,104960.0,104950.0,0.40744832]
[1750262497071,0.00047062,104960.0,104950.0,0.57156832]
[1750262497687,0.00047062,104960.0,104950.0,0.40744832]
[1750262497826,0.00047062,104960.0,104950.0,0.57156832]
[1750262498648,0.00047062,104960.0,104950.0,0.65238366]
[1750262499505,0.00047062,104960.0,104950.0,0.57156832]
[1750262510733,0.00047062,104960.0,104950.0,0.86346832]
[1750262512211,0.00047062,104960.0,104950.0,0.87868917]
[1750262513448,0.00047062,104960.0,104950.0,0.86414832]
[1750262513757,0.00047062,104960.0,104950.0,0.69934832]
[1750262514484,0.00047062,104960.0,104950.0,0.53910656]
[1750262514620,0.00047062,104960.0,104950.0,0.70378656]
[1750262515629,0.00047062,104960.0,104950.0,0.53910656]
[1750262515838,0.00999724,104960.0,104950.0,0.70378656]
[1750262516034,0.00047062,104960.0,104950.0,0.70378656]
[1750262516466,0.00999724,104960.0,104950.0,0.53910656]
[1750262516690,0.00999724,104960.0,104950.0,0.009]
[1750262516691,0.27979989,104960.0,104950.0,0.009]
[1750262516896,0.27027399,104960.0,104950.0,0.009]
[1750262517097,0.29312093,104960.0,104950.0,0.009]
[1750262517671,0.29312093,104960.0,104950.0,0.005]
[1750262518124,0.29312093,104960.0,104950.0,0.01152834]
[1750262518340,0.29312093,104960.0,104950.0,0.002]
[1750262518569,0.27027399,104960.0,104950.0,0.004]
[1750262518769,0.29311066,104960.0,104950.0,0.004]
[1750262518968,0.29311066,104960.0,104950.0,0.01352825]
[1750262519194,0.10256188,104960.0,104950.0,0.20409518]
[1750262519402,0.27027399,104960.0,104950.0,0.004]
[1750262520019,0.22917062,104960.0,104950.0,0.23267921]
[1750262520250,0.20999751,104960.0,104950.0,0.21362352]
[1750262520538,0.00047062,104960.0,104950.0,0.2422071]
[1750262520737,0.00047062,104960.0,104950.0,0.3000071]
[1750262521360,0.22912759,104960.0,104950.0,0.004]
[1750262521565,0.28922741,104960.0,104950.0,0.004]
[1750262521993,0.29875484,104960.0,104950.0,0.004]
[1750262522444,0.08915138,104960.0,104950.0,0.20409518]
[1750262522647,0.09867881,104960.0,104950.0,0.004]
[1750262522853,0.28922759,104960.0,104950.0,0.004]
[1750262523054,0.27970088,104960.0,104950.0,0.004]
[1750262523681,0.27970088,104960.0,104950.0,0.21362334]
[1750262523682,0.07962467,104960.0,104950.0,0.21362334]
[1750262523886,0.02917062,104960.0,104950.0,0.22315132]
[1750262524296,0.03869742,104960.0,104950.0,0.22315132]
[1750262524513,0.03869733,104960.0,104950.0,0.22315132]
[1750262524717,0.00047062,104960.0,104950.0,0.29051267]
[1750262524893,0.20047062,104960.0,104950.0,0.26397903]
[1750262525303,0.00047062,104960.0,104950.0,0.26397903]
[1750262525510,0.00999733,104960.0,104950.0,0.26397903]
[1750262525710,0.00047062,104960.0,104950.0,0.26397903]
[1750262525917,0.20047062,104960.0,104950.0,0.26397903]
[1750262526125,0.00047062,104960.0,104950.0,0.26397903]
[1750262526543,0.20999733,104960.0,104950.0,0.26397903]
[1750262526748,0.20999724,104960.0,104950.0,0.26397903]
[1750262526956,0.20047062,104960.0,104950.0,0.26397903]
[1750262527179,0.00047062,104960.0,104950.0,0.26397903]
[1750262527810,0.20047062,104960.0,104950.0,0.26397903]
[1750262528021,0.00047062,104960.0,104950.0,0.26397903]
[1750262528687,0.00047062,104960.0,104950.0,0.29507903]
[1750262528900,0.00047062,104960.0,104950.0,0.26397903]
[1750262530178,0.02905156,104960.0,104950.0,0.21362334]
[1750262530362,0.05865147,104960.0,104950.0,0.38715132]
[1750262530556,0.05865129,104960.0,104950.0,0.38715123]
[1750262530759,0.04912422,104960.0,104950.0,0.38715114]
[1750262530979,0.04912422,104960.0,104950.0,0.39667885]
[1750262531372,0.05865129,104960.0,104950.0,0.38715123]
[1750262531573,0.05865129,104960.0,104950.0,0.37762334]
[1750262531918,0.05865129,104960.0,104950.0,0.39667921]
[1750262532118,0.04912422,104960.0,104950.0,0.40620692]
[1750262532489,0.01952413,104960.0,104950.0,0.40620692]
[1750262532691,0.0290512,104960.0,104950.0,0.38715132]
[1750262532890,0.0588512,104960.0,104950.0,0.39667921]
[1750262533130,0.0588512,104960.0,104950.0,0.38715132]
[1750262533334,0.0588512,104960.0,104950.0,0.39667921]
[1750262533666,0.06837845,104960.0,104950.0,0.168]
[1750262533868,3.01377548,104960.0,104950.0,0.004]
[1750262534049,3.03660034,104960.0,104950.0,0.004]
[1750262534232,3.20040034,104960.0,104950.0,0.00205]
[1750262534435,3.26078119,104960.0,104950.0,0.00205]
[1750262534725,3.28936179,104960.0,104950.0,0.002]
[1750262535415,3.04948807,104960.0,104950.0,0.002]
[1750262535638,0.43926311,104930.0,104920.0,2.1202154]
[1750262535851,0.40966311,104930.0,104920.0,2.1202154]
[1750262537140,0.40966311,104930.0,104920.0,2.1242154]
[1750262537566,0.42983332,104930.0,104920.0,2.1242154]
[1750262537983,0.42983332,104930.0,104920.0,2.1262154]
[1750262538398,0.22983332,104930.0,104920.0,2.1262154]
[1750262538912,0.20966311,104930.0,104920.0,2.1262154]
[1750262539150,0.21905913,104930.0,104920.0,2.31683682]
[1750262539393,2.66631895,104930.0,104920.0,2.47228677]
[1750262539628,0.20952934,104930.0,104920.0,2.48181747]
[1750262539868,0.21905895,104930.0,104920.0,2.50087851]
[1750262540106,0.21905895,104930.0,104920.0,2.49134808]
[1750262540311,0.21905895,104930.0,104920.0,2.48181747]
[1750262540542,0.23811881,104930.0,104920.0,2.3861677]
[1750262540814,0.22858874,104930.0,104920.0,2.39569849]
[1750262541042,0.22858847,104930.0,104920.0,2.4052291]
[1750262541277,0.22858847,104930.0,104920.0,2.40522919]
[1750262541513,0.23811845,104930.0,104920.0,2.3861677]
[1750262541748,0.22858847,104930.0,104920.0,2.39569849]
[1750262541980,0.23811836,104930.0,104920.0,2.40522919]
[1750262542200,0.22858847,104930.0,104920.0,2.4147598]
[1750262542656,0.22858847,104930.0,104920.0,2.42429032]
[1750262542863,0.22858847,104930.0,104920.0,2.4147598]
[1750262543077,0.22858847,104930.0,104920.0,2.42429032]
[1750262543348,0.22858847,104930.0,104920.0,2.40522919]
[1750262543577,0.20952934,104930.0,104920.0,2.4888567]
[1750262543785,0.25724152,104940.0,104930.0,0.26766293]
[1750262543786,0.00952852,104940.0,104930.0,0.26766293]
[1750262543996,0.03811537,104940.0,104930.0,0.25813323]
[1750262544204,0.0285863,104940.0,104930.0,0.43114312]
[1750262544421,0.02858621,104940.0,104930.0,0.44067291]
[1750262544638,0.02858621,104940.0,104930.0,0.43114312]
[1750262544846,0.02858621,104940.0,104930.0,0.44067291]
[1750262545054,0.01905732,104940.0,104930.0,0.45020261]
[1750262545266,0.01905732,104940.0,104930.0,0.44367291]
[1750262545470,0.0285863,104940.0,104930.0,0.44367291]
[1750262545677,0.01905732,104940.0,104930.0,0.44367291]
[1750262545906,0.01905713,104940.0,104930.0,0.46273204]
[1750262546110,0.02858593,104940.0,104930.0,0.45320261]
[1750262546724,0.00952852,104940.0,104930.0,0.45320261]
[1750262546949,0.26097593,104950.0,104940.0,0.20011425]
[1750262547190,0.24770132,104950.0,104940.0,0.27647212]
[1750262547400,0.20952752,104950.0,104940.0,0.28600073]
[1750262547607,0.0381111,104950.0,104940.0,0.26694323]
[1750262548043,0.03811092,104950.0,104940.0,0.27647203]
[1750262548249,0.04763899,104950.0,104940.0,0.26694323]
[1750262548492,0.03811092,104950.0,104940.0,0.28600092]
[1750262548703,0.21905523,104950.0,104940.0,0.29552953]
[1750262548907,0.20952752,104950.0,104940.0,0.29552953]
[1750262549335,0.21905523,104950.0,104940.0,0.29552953]
[1750262549753,0.21905523,104950.0,104940.0,0.27647212]
[1750262549965,0.22858321,104950.0,104940.0,0.27647212]
[1750262550399,0.21905523,104950.0,104940.0,0.28600073]
[1750262550608,0.21905523,104950.0,104940.0,0.27647212]
[1750262550812,0.21905523,104950.0,104940.0,0.29552944]
[1750262551457,0.21905523,104950.0,104940.0,0.28600083]
[1750262551665,0.22858303,104950.0,104940.0,0.28600083]
[1750262551876,0.22858303,104950.0,104940.0,0.29552944]
[1750262552086,0.20952752,104950.0,104940.0,0.29552944]
[1750262552337,0.00952671,104960.0,104950.0,0.27505087]
[1750262552544,0.20952671,104960.0,104950.0,0.27505096]
[1750262552763,0.21905351,104960.0,104950.0,0.28457867]
[1750262552974,0.22858049,104960.0,104950.0,0.27505096]
[1750262553183,0.20952671,104960.0,104950.0,0.27505105]
[1750262553387,2.65678671,104960.0,104950.0,0.30381319]
[1750262553593,0.22105351,104960.0,104950.0,0.28457876]
[1750262554007,0.22305351,104960.0,104950.0,0.28457876]
[1750262554207,0.23258049,104960.0,104950.0,0.28457885]
[1750262554421,0.23258049,104960.0,104950.0,0.27505105]
[1750262554625,0.22305351,104960.0,104950.0,0.29410656]
[1750262554838,0.22305351,104960.0,104950.0,0.28457885]
[1750262555465,0.23258058,104960.0,104950.0,0.26552316]
[1750262555674,0.23258049,104960.0,104950.0,0.27505105]
[1750262555899,0.22305351,104960.0,104950.0,0.28457885]
[1750262556140,0.23258058,104960.0,104950.0,0.25599518]
[1750262556346,0.23258058,104960.0,104950.0,0.21915123]
[1750262556574,0.23258049,104960.0,104950.0,0.22867912]
[1750262556991,0.23258049,104960.0,104950.0,0.20962325]
[1750262557199,0.23258049,104960.0,104950.0,0.21915114]
[1750262557420,0.23258049,104960.0,104950.0,0.22867894]
[1750262557638,0.23258049,104960.0,104950.0,0.21915123]
[1750262557866,0.23258049,104960.0,104950.0,0.22867912]
[1750262558049,0.23258049,104960.0,104950.0,0.23820692]
[1750262558668,0.21352671,104960.0,104950.0,0.29560638]
[1750262558862,0.21352671,104960.0,104950.0,0.34422553]
[1750262559016,0.21352662,104960.0,104950.0,0.34422553]
[1750262559665,0.22305342,104960.0,104950.0,0.34422553]
[1750262559824,0.2325804,104960.0,104950.0,0.27655087]
[1750262560428,0.22305342,104960.0,104950.0,0.27655087]
[1750262560634,0.23258031,104960.0,104950.0,0.28607867]
[1750262561038,0.22305342,104960.0,104950.0,0.29560638]
[1750262561376,0.2325804,104960.0,104950.0,0.27655087]
[1750262561588,0.24210756,104960.0,104950.0,0.26702298]
[1750262561851,0.24210756,104960.0,104940.0,0.0281]
[1750262561852,2.66631569,104950.0,104940.0,0.0281]
[1750262562005,0.00952861,104940.0,104930.0,0.44025245]
[1750262562390,0.03811219,104950.0,104940.0,0.19058509]
[1750262562587,0.02858385,104950.0,104940.0,0.20011425]
[1750262562808,0.03811219,104950.0,104940.0,0.20011434]
[1750262563040,0.03811219,104950.0,104940.0,0.00952925]
[1750262563260,0.00952843,104940.0,104930.0,0.43172247]
[1750262563455,0.00952843,104940.0,104930.0,0.26836247]
[1750262563685,0.01905695,104940.0,104930.0,0.24830325]
[1750262563849,0.02858957,104930.0,104920.0,2.1779154]
[1750262564095,0.30590497,104930.0,104920.0,2.1202154]
[1750262564300,2.98096497,104930.0,104920.0,2.1202154]
[1750262564497,3.06103806,104930.0,104920.0,2.1202154]
[1750262565454,3.03821897,104930.0,104920.0,2.1202154]
[1750262565709,3.06103194,104930.0,104920.0,2.1202154]
[1750262567170,3.09220021,104930.0,104920.0,2.1202154]
[1750262567551,3.15166106,104930.0,104920.0,2.1202154]
[1750262568271,3.15366106,104930.0,104920.0,2.1202154]
[1750262572042,3.20120021,104930.0,104920.0,2.1202154]
[1750262572261,3.03780021,104930.0,104920.0,2.1202154]
[1750262572513,3.17838724,104930.0,104920.0,2.1202154]
[1750262573250,3.14973324,104930.0,104920.0,2.1202154]
[1750262575935,2.99586212,104930.0,104920.0,2.1202154]
[1750262576301,2.98633278,104930.0,104920.0,2.1754154]
[1750262576731,2.97680317,104930.0,104920.0,2.1754154]
[1750262577988,2.96727328,104930.0,104920.0,2.1754154]
[1750262578200,2.96727328,104930.0,104920.0,2.1202154]
[1750262582155,3.02267328,104930.0,104920.0,2.1202154]
[1750262582381,2.96727328,104930.0,104920.0,2.1202154]
[1750262582604,3.13063328,104930.0,104920.0,2.1202154]
[1750262585254,3.15340171,104930.0,104920.0,2.1202154]
[1750262587704,3.15340171,104930.0,104920.0,2.11152425]
[1750262587948,3.40473314,104930.0,104920.0,2.03183425]
[1750262588167,3.40473314,104930.0,104920.0,1.98411456]
[1750262588820,3.01869871,104930.0,104920.0,1.98411456]
[1750262589030,3.03492171,104930.0,104920.0,2.01281456]
[1750262589238,3.19828171,104930.0,104920.0,2.04171456]
[1750262590092,3.15340171,104930.0,104920.0,2.04171456]
[1750262590302,3.15340171,104930.0,104920.0,1.98411456]
[1750262593290,3.18191793,104930.0,104920.0,1.98411456]
[1750262594476,3.19645878,104930.0,104920.0,1.98411456]
[1750262594691,3.22355878,104930.0,104920.0,1.98411456]
[1750262594896,3.23694045,104930.0,104920.0,1.98411456]
[1750262595096,3.19645878,104930.0,104920.0,1.98411456]
[1750262595300,3.22355878,104930.0,104920.0,1.98411456]
[1750262595704,3.19645878,104930.0,104920.0,1.98411456]
[1750262597196,3.25265878,104930.0,104920.0,1.97091456]
[1750262597402,3.25265878,104930.0,104920.0,1.90231365]
[1750262597665,3.25265878,104930.0,104920.0,1.85459213]
[1750262597880,3.25261878,104930.0,104920.0,1.85459213]
[1750262598275,3.28300936,104930.0,104920.0,1.64213652]
[1750262598487,3.28300936,104930.0,104920.0,1.54669348]
[1750262598692,3.29247758,104930.0,104920.0,1.49897196]
[1750262598942,3.29247758,104930.0,104920.0,1.45125044]
[1750262599130,3.29247758,104930.0,104920.0,1.3558074]
[1750262599344,3.08737815,104930.0,104920.0,1.3558074]
[1750262599600,3.29557815,104930.0,104920.0,1.3558074]
[1750262599791,3.26440988,104930.0,104920.0,1.3558074]
[1750262599996,3.26440988,104930.0,104920.0,1.3450574]
[1750262600204,3.26640988,104930.0,104920.0,1.3450574]
[1750262600636,3.30080046,104930.0,104920.0,1.3450574]
[1750262602696,3.31018931,104930.0,104920.0,1.3450574]
[1750262603305,3.36018931,104930.0,104920.0,1.3450574]
[1750262603516,3.41018931,104930.0,104920.0,1.16017828]
[1750262603716,3.43509794,104930.0,104920.0,1.16017828]
[1750262603921,3.41018931,104930.0,104920.0,1.16017828]
[1750262604145,3.34943644,104930.0,104920.0,1.16017828]
[1750262604344,3.44383644,104930.0,104920.0,1.16017828]
[1750262604582,3.45721811,104930.0,104920.0,1.16017828]
[1750262604780,3.44383644,104930.0,104920.0,1.16017828]
[1750262605092,4.41083551,104930.0,104920.0,1.03397091]
[1750262605306,4.41083551,104930.0,104920.0,1.00355678]
[1750262605524,4.41083551,104930.0,104920.0,0.988418]
[1750262605938,4.41383551,104930.0,104920.0,0.988418]
[1750262606375,4.41083551,104930.0,104920.0,0.988418]
[1750262606782,4.41783551,104930.0,104920.0,0.988418]
[1750262607410,4.41183551,104930.0,104920.0,0.988418]
[1750262607629,0.03449934,104860.0,104840.0,0.0001]
[1750262607846,2.14359359,104860.0,104840.0,0.0001]
[1750262608024,2.29359359,104860.0,104840.0,0.0001]
[1750262608280,2.30952959,104860.0,104840.0,0.0001]
[1750262608498,1.88399093,104850.0,104840.0,0.0001]
[1750262608706,2.14351269,104850.0,104840.0,0.0001]
[1750262609122,2.15308985,104850.0,104840.0,0.00057062]
[1750262610759,2.15308985,104850.0,104840.0,0.00257062]
[1750262611180,1.99076985,104850.0,104840.0,0.07197062]
[1750262611390,0.1411788,104850.0,104840.0,0.08150896]
[1750262611594,0.50474482,104850.0,104840.0,0.07197062]
[1750262611800,0.49520794,104850.0,104840.0,0.07197062]
[1750262612007,2.15404994,104850.0,104840.0,0.01357062]
[1750262612854,1.87043942,104840.0,104830.0,0.0733353]
[1750262613061,2.13000118,104840.0,104830.0,0.07338227]
[1750262613484,2.13000118,104840.0,104830.0,0.01598227]
[1750262614101,2.1187088,104840.0,104830.0,0.04638227]
[1750262614443,2.1197088,104840.0,104830.0,0.05538227]
[1750262614648,2.1197088,104840.0,104830.0,0.02798227]
[1750262615465,2.13424965,104840.0,104830.0,0.02798227]
[1750262616484,2.13424965,104840.0,104830.0,0.02498227]
[1750262617151,2.13324965,104840.0,104830.0,0.01598227]
[1750262617574,2.28724965,104840.0,104830.0,0.01698227]
[1750262619560,2.37584023,104840.0,104830.0,0.01698227]
[1750262619769,2.39850199,104840.0,104830.0,0.01698227]
[1750262620178,2.39850199,104840.0,104830.0,0.01598227]
[1750262620385,2.39450199,104840.0,104830.0,0.01598227]
[1750262620593,2.40250199,104840.0,104830.0,0.01698227]
[1750262620802,2.45250199,104840.0,104830.0,0.01598227]
[1750262621221,2.45750199,104840.0,104830.0,0.01698227]
[1750262621429,2.29418199,104840.0,104830.0,0.01698227]
[1750262621634,2.50238199,104840.0,104830.0,0.01698227]
[1750262621838,2.49938199,104840.0,104830.0,0.01698227]
[1750262622267,2.50238199,104840.0,104830.0,0.01698227]
[1750262624355,2.24418199,104840.0,104830.0,0.01698227]
[1750262624571,1.99105056,104840.0,104830.0,0.01698227]
[1750262624786,2.19925056,104840.0,104830.0,0.01698227]
[1750262624993,1.98292965,104840.0,104830.0,0.01698227]
[1750262625205,2.1317488,104840.0,104830.0,0.07688227]
[1750262625419,1.77762128,104840.0,104830.0,0.28489474]
[1750262625622,0.05115154,104840.0,104830.0,0.07688227]
[1750262625864,0.2419197,104840.0,104830.0,0.07688227]
[1750262626070,0.39274163,104840.0,104830.0,0.07688227]
[1750262626694,0.38320347,104840.0,104830.0,0.07688227]
[1750262626907,0.37320347,104840.0,104830.0,0.07588227]
[1750262627316,0.37420347,104840.0,104830.0,0.08188227]
[1750262627669,0.36466522,104840.0,104830.0,0.08188227]
[1750262627870,0.36466522,104840.0,104830.0,0.02198227]
[1750262627871,2.11974898,104840.0,104830.0,0.02198227]
[1750262628139,2.18737018,104840.0,104830.0,0.02198227]
[1750262628551,2.18737018,104840.0,104830.0,0.02398227]
[1750262628975,2.18737018,104840.0,104830.0,0.02198227]
[1750262629176,2.17241224,104840.0,104830.0,0.02198227]
[1750262629555,2.17241224,104840.0,104830.0,0.01950227]
[1750262630053,1.98308126,104840.0,104830.0,0.01350227]
[1750262630234,2.19116126,104840.0,104830.0,0.07670227]
[1750262630409,2.19216126,104840.0,104830.0,0.07870227]
[1750262631013,2.19216126,104840.0,104830.0,0.01550227]
[1750262631787,2.22051952,104840.0,104830.0,0.01550227]
[1750262632033,2.19216126,104840.0,104830.0,0.01550227]
[1750262632204,2.01243952,104840.0,104830.0,0.01550227]
[1750262632410,2.22051952,104840.0,104830.0,0.01550227]
[1750262633264,2.22997228,104840.0,104830.0,0.01550227]
[1750262634442,2.25865328,104840.0,104830.0,0.01550227]
[1750262635268,2.32014386,104840.0,104830.0,0.01550227]
[1750262635468,2.28904386,104840.0,104830.0,0.04580227]
[1750262635692,2.25865328,104840.0,104830.0,0.07770227]
[1750262635897,2.28721925,104840.0,104830.0,0.07770227]
[1750262636497,2.25865328,104840.0,104830.0,0.07770227]
[1750262636704,2.03603243,104840.0,104830.0,0.07770227]
[1750262636913,2.234869,104840.0,104830.0,0.07770227]
[1750262637331,2.24940985,104840.0,104830.0,0.04740227]
[1750262637536,2.28722087,104840.0,104830.0,0.01550227]
[1750262639170,2.31536981,104840.0,104830.0,0.01550227]
[1750262639373,2.27755879,104840.0,104830.0,0.01550227]
[1750262640623,2.30795879,104840.0,104830.0,0.01550227]
[1750262640826,2.27755879,104840.0,104830.0,0.01550227]
[1750262642054,2.27755879,104840.0,104830.0,0.07890227]
[1750262642468,2.06947879,104840.0,104830.0,0.07890227]
[1750262642673,2.27751879,104840.0,104830.0,0.07890227]
[1750262643717,2.22080226,104840.0,104830.0,0.04570227]
[1750262643922,2.22080226,104840.0,104830.0,0.01550227]
[1750262645201,2.46459284,104840.0,104830.0,0.01550227]
[1750262645421,2.54021488,104840.0,104830.0,0.01550227]
[1750262645642,2.0597033,104840.0,104830.0,0.01550227]
[1750262645862,2.0597033,104840.0,104830.0,0.04830227]
[1750262646077,2.2677433,104840.0,104830.0,0.08040227]
[1750262646711,2.24932485,104840.0,104830.0,0.08040227]
[1750262647412,2.234784,104840.0,104830.0,0.08040227]
[1750262647835,2.071504,104840.0,104830.0,0.08040227]
[1750262648043,2.234784,104840.0,104830.0,0.08040227]
[1750262648828,2.27291874,104840.0,104830.0,0.08040227]
[1750262649463,2.234784,104840.0,104830.0,0.08040227]
[1750262650149,2.31152485,104840.0,104830.0,0.01550227]
[1750262650352,2.31152787,104840.0,104830.0,0.01550227]
[1750262650556,2.25432126,104840.0,104830.0,0.01550227]
[1750262650963,2.3299433,104840.0,104830.0,0.01550227]
[1750262651301,2.36033388,104840.0,104830.0,0.01550227]
[1750262652178,1.86872496,104820.0,104810.0,0.0621]
[1750262652424,2.17954738,104820.0,104810.0,0.06257114]
[1750262653815,2.18054738,104820.0,104810.0,0.06857114]
[1750262654018,2.19508823,104820.0,104810.0,0.00657114]
[1750262654229,2.23323609,104820.0,104810.0,0.00657114]
[1750262654434,2.2046252,104820.0,104810.0,0.00657114]
[1750262655066,2.2036252,104820.0,104810.0,0.00057114]
[1750262655280,2.2046252,104820.0,104810.0,0.00657114]
[1750262655900,2.23501578,104820.0,104810.0,0.00457114]
[1750262656529,2.23401578,104820.0,104810.0,0.00057114]
[1750262656762,2.23401578,104820.0,104810.0,0.00157114]
[1750262656763,2.23501578,104820.0,104810.0,0.00157114]
[1750262657435,2.34239834,104820.0,104810.0,0.00157114]
[1750262657656,2.31386555,104820.0,104810.0,0.00157114]
[1750262658076,2.28895692,104820.0,104810.0,0.00157114]
[1750262658701,2.33069385,104820.0,104810.0,0.00157114]
[1750262658936,2.33269385,104820.0,104810.0,0.00157114]
[1750262659659,2.36980704,104820.0,104810.0,0.00057114]
[1750262659897,2.37080704,104820.0,104810.0,0.00157114]
[1750262660135,2.31361311,104820.0,104810.0,0.00157114]
[1750262660830,2.1983409,104820.0,104810.0,0.00157114]
[1750262661057,2.16795032,104820.0,104810.0,0.00157114]
[1750262661350,2.07239226,104820.0,104810.0,0.00157114]
[1750262661611,2.24041678,104820.0,104810.0,0.00157114]
[1750262661875,2.25495763,104820.0,104810.0,0.06487114]
[1750262662136,2.24041678,104820.0,104810.0,0.06487114]
[1750262662390,2.22626863,104820.0,104810.0,0.06487114]
[1750262662649,2.01991949,104820.0,104810.0,0.07236825]
[1750262662887,2.01991949,104820.0,104810.0,0.06487114]
[1750262663131,2.18315949,104820.0,104810.0,0.06487114]
[1750262665660,2.01991949,104820.0,104810.0,0.06487114]
[1750262665931,2.18315949,104820.0,104810.0,0.06487114]
[1750262666852,1.97519949,104820.0,104810.0,0.06487114]
[1750262667081,2.13843949,104820.0,104810.0,0.06487114]
[1750262667310,2.13839949,104820.0,104810.0,0.06487114]
[1750262667714,0.25430879,104820.0,104810.0,0.09145217]
[1750262667921,0.23161902,104820.0,104810.0,0.09145217]
[1750262668127,0.23196246,104820.0,104810.0,0.09145217]
[1750262668502,0.22242303,104820.0,104810.0,0.09145217]
[1750262668717,0.21288333,104820.0,104810.0,0.06487114]
[1750262669681,1.85626833,104820.0,104810.0,0.06487114]
[1750262669901,1.87911834,104820.0,104810.0,0.06487114]
[1750262670703,1.9753601,104820.0,104810.0,0.06487114]
[1750262671108,1.9753601,104820.0,104810.0,0.00157114]
[1750262671109,2.01846924,104820.0,104810.0,0.00157114]
[1750262671285,2.04885982,104820.0,104810.0,0.00157114]
[1750262675424,1.7821152,104820.0,104810.0,0.00157114]
[1750262675660,1.99199853,104820.0,104810.0,0.00157114]
[1750262676359,2.19987853,104820.0,104810.0,0.00157114]
[1750262676838,1.85082534,104820.0,104810.0,0.06267114]
[1750262677060,1.66956066,104820.0,104810.0,0.10167427]
[1750262677288,1.67910046,104820.0,104810.0,0.28295468]
[1750262677508,1.68864044,104820.0,104810.0,0.0921332]
[1750262677723,1.67910046,104820.0,104810.0,0.30203664]
[1750262677934,1.68864053,104820.0,104810.0,0.07221221]
[1750262678148,1.68864044,104820.0,104810.0,0.07221221]
[1750262678361,1.68864044,104820.0,104810.0,0.27257467]
[1750262678577,1.68864044,104820.0,104810.0,0.07221221]
[1750262678791,1.65048135,104820.0,104810.0,0.26303369]
[1750262678999,0.38256219,104830.0,104820.0,0.0627]
[1750262679208,0.04193819,104830.0,104820.0,0.25350328]
[1750262679480,0.2,104830.0,104820.0,0.27258315]
[1750262679678,0.00953861,104830.0,104820.0,0.27258315]
[1750262679901,0.21907731,104830.0,104820.0,0.27258315]
[1750262680122,0.0286161,104830.0,104820.0,0.25350328]
[1750262680360,0.23815499,104830.0,104820.0,0.26304326]
[1750262680581,0.24769406,104830.0,104820.0,0.07224016]
[1750262680770,0.24869461,104830.0,104820.0,0.0647]
[1750262681018,0.22894099,104830.0,104820.0,0.0627]
[1750262681235,0.23194099,104830.0,104820.0,0.0677]
[1750262681447,0.2224022,104830.0,104820.0,0.0677]
[1750262681667,0.2204022,104830.0,104820.0,0.0677]
[1750262682066,0.2204022,104830.0,104820.0,0.0697]
[1750262682501,0.22961712,104830.0,104820.0,0.0697]
[1750262682703,0.21053861,104830.0,104820.0,0.30092284]
[1750262682909,0.22961629,104830.0,104820.0,0.30092293]
[1750262683116,0.22961629,104830.0,104820.0,0.11011974]
[1750262683314,0.22961629,104830.0,104820.0,0.31046309]
[1750262683736,0.22961629,104830.0,104820.0,0.30092302]
[1750262683938,0.22961629,104830.0,104820.0,0.29138286]
[1750262684066,0.2296162,104830.0,104820.0,0.31046273]
[1750262684293,0.2296162,104830.0,104820.0,0.30092284]
[1750262684701,0.001,104830.0,104820.0,0.32000216]
[1750262684897,0.21053843,104830.0,104820.0,0.32000216]
[1750262685108,0.001,104830.0,104820.0,0.32000216]
[1750262685773,0.001,104830.0,104820.0,0.57932392]
[1750262686976,0.001,104830.0,104820.0,0.54844434]
[1750262692885,0.2,104850.0,104840.0,0.21938081]
[1750262693105,1.618092,104850.0,104840.0,0.28198081]
[1750262693538,0.09532387,104860.0,104850.0,0.2098229]
[1750262693766,0.49559153,104860.0,104850.0,0.0612]
[1750262694004,0.02861064,104850.0,104840.0,0.44387795]
[1750262694222,0.01907367,104850.0,104840.0,0.44387795]
[1750262694480,0.01907367,104850.0,104840.0,0.45441593]
[1750262694703,0.01907367,104850.0,104840.0,0.43542913]
[1750262694929,0.01907367,104850.0,104840.0,0.44496701]
[1750262695161,0.0095367,104850.0,104840.0,0.45650481]
[1750262695856,0.0095367,104850.0,104840.0,0.4565049]
[1750262696074,0.0095367,104850.0,104840.0,0.29350499]
[1750262696301,0.28605546,104860.0,104850.0,0.19074868]
[1750262696302,0.01907222,104860.0,104850.0,0.19074868]
[1750262696529,0.30486085,104860.0,104850.0,0.26338611]
[1750262696738,0.29532442,104860.0,104850.0,0.26338611]
[1750262697171,0.30486076,104860.0,104850.0,0.26338611]
[1750262697379,0.30486085,104860.0,104850.0,0.07363743]
[1750262697582,0.29532387,104860.0,104850.0,0.25484868]
[1750262697801,1.82762679,104870.0,104860.0,0.20980308]
[1750262698008,1.63716176,104870.0,104860.0,0.26982308]
[1750262698247,1.62762679,104870.0,104860.0,0.27935905]
[1750262698459,1.62762679,104870.0,104860.0,0.28889493]
[1750262698662,0.34025172,104880.0,104860.0,0.29843072]
[1750262698870,0.23621291,104880.0,104860.0,0.36918462]
[1750262699083,0.43621291,104880.0,104870.0,0.0651]
[1750262699289,0.23621291,104880.0,104870.0,0.0651]
[1750262699967,0.43644173,104880.0,104870.0,0.0331]
[1750262700371,0.00953497,104870.0,104860.0,0.26156692]
[1750262700583,0.02860538,104870.0,104860.0,0.0613]
[1750262700798,0.03814081,104870.0,104860.0,0.0613]
[1750262701006,0.0381409,104870.0,104860.0,0.0613]
[1750262701407,0.22860774,104860.0,104840.0,0.28514694]
[1750262701619,0.23814399,104860.0,104850.0,0.0312]
[1750262701820,0.43841091,104860.0,104850.0,0.0312]
[1750262702034,0.43841091,104860.0,104840.0,0.26459088]
[1750262702035,0.0095367,104850.0,104840.0,0.26459088]
[1750262702282,0.01907358,104850.0,104840.0,0.43704886]
[1750262702492,0.01907358,104850.0,104840.0,0.42751088]
[1750262702698,0.02861055,104850.0,104840.0,0.22720934]
[1750262702904,0.02861055,104850.0,104840.0,0.42751438]
[1750262703109,0.24768514,104850.0,104840.0,0.06428934]
[1750262703322,0.23814844,104850.0,104840.0,0.03218934]
[1750262703742,0.23814844,104850.0,104840.0,0.03518934]
[1750262704663,0.22861101,104850.0,104840.0,0.03518934]
[1750262704907,0.22861101,104850.0,104840.0,0.06658934]
[1750262705095,0.23814826,104850.0,104840.0,0.06658934]
[1750262705306,0.41936006,104850.0,104840.0,0.07058934]
[1750262705529,0.40982309,104850.0,104840.0,0.00708934]
[1750262707306,0.40028593,104850.0,104840.0,0.00708934]
[1750262707500,0.42311444,104850.0,104840.0,0.00708934]
[1750262707709,0.22311444,104850.0,104840.0,0.00708934]
[1750262707914,0.20028593,104850.0,104840.0,0.00708934]
[1750262708498,0.20028593,104850.0,104840.0,0.00308934]
[1750262708876,0.20028593,104850.0,104840.0,0.00208934]
[1750262709377,0.20028593,104850.0,104840.0,0.00408934]
[1750262709578,1.62762925,104850.0,104840.0,0.00408934]
[1750262709848,0.20028593,104850.0,104840.0,0.00408934]
[1750262710762,0.29652769,104850.0,104840.0,0.00408934]
[1750262710992,0.32812769,104850.0,104840.0,0.00408934]
[1750262711201,0.3509759,104850.0,104840.0,0.00408934]
[1750262712551,2.01680875,104850.0,104840.0,0.00408934]
[1750262712774,2.07507293,104850.0,104840.0,0.00408934]